bitfinex/quotes_ETHUSD_20250721
["timestamp","ask_amount","ask_price","bid_price","bid_amount"]
[1753060224145,15.75434324,3742.2,3742.1,0.02]
[1753060224364,15.95798779,3742.2,3742.1,0.02]
[1753060224768,11.80598779,3742.2,3742.1,0.02]
[1753060224932,15.95898779,3742.2,3742.1,0.02]
[1753060225269,15.95898779,3742.2,3740.3,0.7774]
[1753060225270,0.55,3741.3,3740.3,0.7774]
[1753060225454,7.40261168,3741.2,3740.1,0.02]
[1753060225639,7.37593916,3741.2,3740.1,0.02]
[1753060225839,7.83393916,3741.2,3740.1,0.02]
[1753060226048,0.55,3741.2,3740.3,0.434]
[1753060226365,4.702,3741.2,3740.3,0.434]
[1753060226674,10.85961168,3741.2,3740.3,0.434]
[1753060226974,10.83293916,3741.2,3740.3,0.434]
[1753060227467,10.83293916,3741.2,3740.1,0.02]
[1753060227667,11.59033916,3741.2,3740.1,0.02]
[1753060228939,6.22365381,3740.2,3740.1,0.02]
[1753060229138,15.29677216,3740.2,3740.1,0.02]
[1753060229343,15.74697216,3740.2,3740.1,0.02]
[1753060229977,0.55,3740.2,3740.1,0.02]
[1753060230190,0.7653,3741.5,3740.1,1.2071]
[1753060230380,0.1336,3740.2,3740.1,0.7772]
[1753060230949,0.1336,3740.2,3740.1,1.2071]
[1753060233272,0.1336,3740.2,3740.1,0.02]
[1753060233273,0.41431212,3740.2,3740.1,0.02]
[1753060233669,0.1336,3740.2,3740.1,0.4499]
[1753060234176,3.35725381,3740.2,3740.1,0.02]
[1753060234377,3.22436884,3739.2,3738.5,0.4299]
[1753060234594,3.22436884,3739.2,3738.3,0.9416]
[1753060234595,3.25104136,3739.2,3738.3,0.808]
[1753060234967,0.02667252,3739.2,3739.0,0.8124]
[1753060235189,0.55,3739.3,3739.1,0.4499]
[1753060235361,0.55,3739.3,3739.2,0.4299]
[1753060235578,2.67421572,3739.5,3739.2,0.4299]
[1753060235778,0.55,3739.6,3739.2,0.4299]
[1753060235977,2.67422581,3739.4,3739.3,0.4299]
[1753060236207,2.67436884,3739.2,3739.1,0.52]
[1753060236391,0.55,3738.8,3738.1,0.4499]
[1753060236622,0.55,3738.5,3738.1,0.4499]
[1753060236928,0.02667252,3738.8,3738.2,0.4299]
[1753060237128,2.6750127,3738.3,3738.2,0.4299]
[1753060237333,0.02667252,3738.8,3738.1,0.02]
[1753060237529,0.02667252,3738.8,3738.2,0.4299]
[1753060237714,2.67460543,3738.9,3738.2,0.4299]
[1753060237914,2.67474506,3738.7,3738.3,0.816]
[1753060238133,2.67474506,3738.7,3738.4,0.4299]
[1753060238316,2.67482935,3738.6,3738.4,0.4299]
[1753060238516,2.67482935,3738.6,3738.3,0.816]
[1753060238517,2.67494115,3738.4,3738.3,0.816]
[1753060238717,3.22508426,3738.2,3738.1,0.02]
[1753060238916,3.25175678,3738.2,3738.1,0.02]
[1753060239431,6.70195678,3738.2,3738.1,0.02]
[1753060239647,6.67528426,3738.2,3738.1,1e-08]
[1753060239792,8.1514594,3738.2,3738.1,1e-08]
[1753060239997,7.7012594,3738.2,3738.1,1e-08]
[1753060240209,8.1514594,3738.2,3738.1,1e-08]
[1753060243194,7.1512594,3738.2,3738.1,1e-08]
[1753060243516,7.7012594,3738.2,3738.1,1e-08]
[1753060243893,4.20997514,3738.2,3738.1,1e-08]
[1753060244093,3.65997514,3738.2,3738.1,1e-08]
[1753060244432,3.8850594,3738.2,3738.1,1e-08]
[1753060244995,4.36193192,3738.2,3738.1,1e-08]
[1753060245403,12.31773192,3738.2,3738.1,1e-08]
[1753060245619,7.6798594,3738.2,3738.1,1e-08]
[1753060246297,6.8850594,3738.2,3738.1,1e-08]
[1753060246695,0.4502,3739.1,3738.1,1e-08]
[1753060246912,0.80527252,3739.0,3738.1,0.42990001]
[1753060247125,0.55,3738.3,3738.1,1e-08]
[1753060247743,0.55,3738.3,3738.2,0.4299]
[1753060247928,0.55,3738.7,3738.2,1.2598]
[1753060248131,0.55,3738.7,3738.1,1e-08]
[1753060248429,3.4531283,3739.0,3738.1,0.00100001]
[1753060248430,0.6836,3738.2,3738.1,0.00100001]
[1753060248636,0.1336,3738.2,3738.1,0.00100001]
[1753060249198,0.1336,3738.2,3738.1,0.43090001]
[1753060249944,0.6836,3738.2,3738.1,0.00100001]
[1753060250432,0.6836,3738.2,3738.1,0.43090001]
[1753060250937,0.6836,3738.2,3738.1,0.00100001]
[1753060251303,0.6836,3738.2,3738.1,0.43090001]
[1753060251726,0.6836,3738.2,3738.1,0.00100001]
[1753060251977,3.35868426,3738.2,3738.1,0.00100001]
[1753060252158,3.35868426,3738.2,3738.1,1e-08]
[1753060252159,6.80888426,3738.2,3738.1,1e-08]
[1753060252782,6.35868426,3738.2,3738.1,1e-08]
[1753060253073,0.6836,3738.2,3738.1,0.42990001]
[1753060254135,3.35868426,3738.2,3738.1,0.42990001]
[1753060254352,3.38535678,3738.2,3738.1,1e-08]
[1753060255831,3.35868426,3738.2,3738.1,1e-08]
[1753060256986,4.60628426,3738.2,3738.1,1e-08]
[1753060257145,7.60628426,3738.2,3738.1,1e-08]
[1753060258062,7.15608426,3738.2,3738.1,1e-08]
[1753060258261,6.35868426,3738.2,3738.1,1e-08]
[1753060258664,2.80868426,3738.2,3738.1,1e-08]
[1753060258984,0.1336,3738.2,3738.1,1e-08]
[1753060259189,0.1336,3738.2,3738.1,1.24300001]
[1753060259478,2.80868426,3738.2,3738.1,0.81430001]
[1753060259684,3.35868426,3738.2,3738.1,0.81430001]
[1753060260342,0.1336,3738.2,3738.1,1.24300001]
[1753060261076,3.35868426,3738.2,3738.1,1e-08]
[1753060261291,3.98872366,3738.2,3738.1,1e-08]
[1753060261436,0.1336,3738.2,3738.1,1e-08]
[1753060261635,0.1336,3738.2,3738.1,1.24920001]
[1753060262067,0.6836,3738.2,3738.1,1.24920001]
[1753060262794,0.1336,3738.2,3738.1,1.24920001]
[1753060263085,3.38535678,3738.2,3738.1,1e-08]
[1753060263375,0.6836,3738.2,3738.1,1e-08]
[1753060263551,3.35868426,3738.2,3738.1,1e-08]
[1753060263751,0.6836,3738.2,3738.1,1e-08]
[1753060263948,0.55,3737.8,3737.1,0.02]
[1753060264291,2.67482763,3738.6,3737.1,0.02]
[1753060264292,0.55,3738.0,3737.2,1.1797]
[1753060264495,3.0,3738.1,3737.3,0.4287]
[1753060264779,3.0,3738.1,3737.4,5.00585656]
[1753060265071,3.0,3738.1,3737.8,0.7931]
[1753060265273,3.0,3738.1,3737.8,0.9267]
[1753060265646,3.0,3738.1,3737.9,1.1968]
[1753060265852,3.0,3738.1,3738.0,1.1968]
[1753060266463,3.0,3738.1,3738.0,6.89877966]
[1753060266639,3.0,3738.1,3738.0,7.69550536]
[1753060267076,3.0,3738.1,3738.0,5.02027797]
[1753060267454,3.0,3738.1,3738.0,9.20627797]
[1753060269177,3.0,3738.1,3738.0,11.88150536]
[1753060269377,3.0,3738.1,3738.0,9.20627797]
[1753060269878,3.0,3738.1,3738.0,5.02027797]
[1753060270056,3.0,3738.1,3738.0,9.20327797]
[1753060270257,3.0,3738.1,3738.0,5.02127797]
[1753060270442,3.0,3738.1,3738.0,9.20327797]
[1753060270780,3.0,3738.1,3738.0,5.02127797]
[1753060270968,3.0,3738.1,3738.0,11.87750536]
[1753060272247,3.0,3738.1,3738.0,12.01305412]
[1753060272684,3.0,3738.1,3738.0,12.21636894]
[1753060276370,0.002,3738.9,3738.8,6.46495496]
[1753060276711,0.002,3738.9,3738.8,17.9679245]
[1753060277000,0.002,3738.9,3738.8,18.3966245]
[1753060277207,0.02,3739.9,3739.8,2.67393978]
[1753060277409,0.02,3739.9,3739.8,7.66343978]
[1753060277565,0.02,3739.9,3739.8,11.09213978]
[1753060277771,0.02,3739.9,3739.8,12.46875634]
[1753060279775,1e-08,3739.9,3739.8,16.96959034]
[1753060279971,1e-08,3739.9,3739.8,8.28975634]
[1753060280281,1e-08,3739.9,3739.8,12.47375634]
[1753060282694,1e-08,3739.9,3739.8,8.28975634]
[1753060282977,1e-08,3739.9,3739.8,15.33473234]
[1753060283171,1e-08,3739.9,3739.8,9.79681656]
[1753060283394,1e-08,3739.9,3739.8,12.47075634]
[1753060283795,1e-08,3739.9,3739.8,8.28975634]
[1753060284284,1e-08,3739.9,3739.8,12.47075634]
[1753060284808,1e-08,3739.9,3739.8,12.46975634]
[1753060285273,1e-08,3739.9,3739.8,8.28975634]
[1753060285472,1e-08,3739.9,3739.8,12.46775634]
[1753060286734,1e-08,3739.9,3739.8,12.60135634]
[1753060286940,1e-08,3739.9,3739.8,8.42335634]
[1753060287139,1e-08,3739.9,3739.8,12.60135634]
[1753060287498,1e-08,3739.9,3739.8,25.51353434]
[1753060287837,1e-08,3739.9,3739.8,23.08059134]
[1753060288205,1e-08,3739.9,3739.8,22.37409134]
[1753060290339,1e-08,3739.9,3739.8,15.95535634]
[1753060290554,1e-08,3739.9,3739.8,23.94579534]
[1753060290760,1e-08,3739.9,3739.8,20.06223534]
[1753060291948,1e-08,3739.9,3739.8,8.97335634]
[1753060292116,1e-08,3739.9,3739.8,20.67015834]
[1753060292302,1e-08,3739.9,3739.8,17.89200934]
[1753060292502,1e-08,3739.9,3739.8,22.61400934]
[1753060292911,1e-08,3739.9,3739.8,19.40205634]
[1753060294144,0.002,3740.7,3740.4,7.01411085]
[1753060294450,0.002,3740.7,3740.6,7.1475679]
[1753060294754,0.02,3740.9,3740.8,7.01382497]
[1753060295041,0.02,3740.9,3740.8,28.58757097]
[1753060295205,0.002,3741.1,3741.0,6.46368206]
[1753060295408,0.002,3741.1,3741.0,21.07275706]
[1753060295728,0.002,3741.1,3741.0,24.11591526]
[1753060295924,0.002,3741.1,3741.0,20.65535526]
[1753060296128,0.002,3741.1,3741.0,19.72325526]
[1753060296531,0.002,3741.1,3741.0,18.83525526]
[1753060296832,0.002,3741.1,3741.0,16.69655526]
[1753060297042,0.002,3741.1,3741.0,13.66224026]
[1753060297439,0.002,3741.1,3741.0,13.65824026]
[1753060298359,0.002,3741.1,3741.0,9.04024026]
[1753060298511,0.002,3741.1,3741.0,17.17328206]
[1753060298706,0.002,3741.1,3741.0,13.00728206]
[1753060298907,0.002,3741.1,3741.0,3.9242]
[1753060299103,0.002,3741.1,3741.0,6.5426]
[1753060299312,0.002,3741.1,3741.0,10.7086]
[1753060299750,0.002,3741.1,3741.0,13.7086]
[1753060299932,0.002,3741.1,3741.0,9.5426]
[1753060300131,0.002,3741.1,3741.0,18.05525869]
[1753060300338,0.002,3741.1,3741.0,18.87155869]
[1753060301937,0.002,3741.1,3741.0,26.60606369]
[1753060302246,0.002,3741.1,3741.0,23.95626469]
[1753060302465,0.002,3741.1,3741.0,19.26973869]
[1753060302757,0.002,3741.1,3741.0,18.86755869]
[1753060302961,0.002,3741.1,3741.0,14.70555869]
[1753060303121,0.002,3741.1,3741.0,23.62555863]
[1753060303316,0.002,3741.1,3741.0,43.66102063]
[1753060303626,0.002,3741.1,3741.0,32.82905263]
[1753060303821,0.002,3741.1,3741.0,27.86735763]
[1753060304156,0.002,3741.1,3741.0,19.46355863]
[1753060304370,0.002,3741.1,3741.0,23.62555863]
[1753060304577,0.002,3741.1,3741.0,19.46355863]
[1753060304877,0.002,3741.1,3741.0,23.62355863]
[1753060305032,0.002,3741.1,3741.0,27.05633363]
[1753060305863,0.002,3741.1,3741.0,27.55633363]
[1753060306172,0.002,3741.1,3741.0,24.12355863]
[1753060306333,0.002,3741.1,3741.0,24.12155863]
[1753060306534,0.002,3741.1,3741.0,19.96355863]
[1753060306740,0.002,3741.1,3741.0,24.12155863]
[1753060306946,0.002,3741.1,3741.0,19.96355863]
[1753060307184,0.002,3741.1,3741.0,24.12055863]
[1753060308059,0.002,3741.1,3741.0,23.66755863]
[1753060309082,0.002,3741.1,3741.0,24.11955863]
[1753060309854,0.002,3741.1,3741.0,19.96355863]
[1753060310064,0.002,3741.1,3741.0,24.11955863]
[1753060311586,0.002,3741.1,3741.0,19.96355863]
[1753060311823,0.002,3741.1,3741.0,18.95659994]
[1753060313421,0.002,3741.1,3741.0,8.39159994]
[1753060313586,0.002,3741.1,3741.0,12.54759994]
[1753060313784,0.002,3741.1,3741.0,8.39159994]
[1753060314093,0.002,3741.1,3741.0,0.6336]
[1753060314094,0.4303,3741.1,3741.0,0.6336]
[1753060314294,0.4303,3741.1,3741.0,4.7896]
[1753060318621,0.4303,3741.1,3741.0,0.6336]
[1753060318827,0.4303,3741.1,3741.0,4.656]
[1753060319004,0.4303,3741.1,3741.0,0.5]
[1753060319205,0.5639,3741.1,3741.0,4.656]
[1753060320709,3.67043517,3741.1,3741.0,0.5]
[1753060320909,5.03633517,3741.1,3741.0,0.5]
[1753060321107,0.55,3741.0,3739.2,6.409]
[1753060321307,0.8159,3740.2,3739.2,6.409]
[1753060321513,0.8159,3740.0,3739.9,4.156]
[1753060321715,1.2498,3740.0,3739.9,4.156]
[1753060321909,1.65818634,3740.0,3739.9,4.156]
[1753060322208,3.002,3741.1,3739.9,4.156]
[1753060322209,0.8299,3740.3,3739.9,4.156]
[1753060322404,0.8299,3740.3,3739.3,0.02674297]
[1753060322405,0.8299,3740.3,3739.8,0.6346]
[1753060322603,0.4339,3740.2,3739.9,4.156]
[1753060322828,0.4339,3740.1,3739.9,4.156]
[1753060322995,0.4339,3740.0,3739.9,4.156]
[1753060323530,0.4339,3740.0,3739.9,4.157]
[1753060323732,0.4339,3740.0,3739.8,0.501]
[1753060323933,0.4339,3740.0,3739.9,4.157]
[1753060324137,0.4339,3740.2,3739.8,0.501]
[1753060324292,0.4339,3740.1,3739.9,4.157]
[1753060324935,3.63712972,3740.3,3739.9,4.157]
[1753060325232,0.7963,3740.1,3739.8,0.501]
[1753060325534,1.39047252,3740.0,3739.9,4.157]
[1753060326534,1.3638,3740.0,3739.9,4.157]
[1753060327334,1.3638,3740.0,3739.8,0.501]
[1753060327545,0.9299,3740.0,3739.9,4.157]
[1753060327753,0.7963,3740.0,3739.9,4.157]
[1753060328900,0.7963,3740.0,3739.9,4.158]
[1753060330724,0.5675,3740.3,3739.9,4.7256]
[1753060330725,0.8022,3740.3,3739.9,4.7256]
[1753060331354,0.1336,3740.8,3740.1,0.1336]
[1753060331518,0.7967,3740.9,3740.2,4.18373653]
[1753060331730,0.7967,3740.9,3740.4,0.1336]
[1753060331920,0.7967,3740.9,3740.5,4.158]
[1753060332121,0.7967,3740.9,3740.5,4.593]
[1753060332354,0.7967,3740.9,3740.5,4.158]
[1753060333351,0.7967,3740.7,3740.4,0.1336]
[1753060333538,0.1336,3740.5,3740.0,4.75799994]
[1753060333745,0.1336,3740.5,3740.1,4.157]
[1753060334056,3.47643865,3740.4,3740.0,4.75799994]
[1753060334269,3.47643865,3740.4,3740.2,4.157]
[1753060334270,0.9365,3740.3,3740.2,4.157]
[1753060334554,1.3704,3740.3,3740.2,4.157]
[1753060334749,1.90480312,3740.3,3740.2,4.157]
[1753060335057,1.90480312,3740.3,3739.8,0.501]
[1753060335222,0.4339,3740.2,3739.9,4.157]
[1753060335418,1.33730312,3740.3,3739.9,4.158]
[1753060335419,0.1336,3740.0,3739.9,4.158]
[1753060335650,0.8029,3740.3,3739.9,0.001]
[1753060335834,0.8029,3740.3,3740.0,4.157]
[1753060336035,0.7524,3740.6,3740.0,4.18373796]
[1753060336233,0.7524,3740.6,3740.1,0.5686]
[1753060336445,0.7524,3740.6,3739.9,0.001]
[1753060336446,0.46057252,3740.5,3739.9,0.001]
[1753060336786,0.26825725,3740.4,3740.0,4.157]
[1753060337341,0.7524,3740.6,3740.0,4.157]
[1753060337522,0.886,3740.6,3740.0,4.2906]
[1753060338867,0.7822,3740.9,3740.1,0.46173725]
[1753060339040,0.1336,3740.9,3740.3,0.1336]
[1753060339240,0.1336,3740.9,3740.4,4.157]
[1753060339444,1.25287252,3740.8,3739.9,0.001]
[1753060339774,0.8224,3740.3,3739.9,0.001]
[1753060340071,0.1336,3740.4,3739.9,0.001]
[1753060340072,4.04619679,3740.0,3739.9,0.001]
[1753060340369,4.17986828,3739.9,3739.8,0.001]
[1753060340528,4.2065408,3739.9,3739.8,0.001]
[1753060340725,4.6404408,3739.9,3739.8,0.001]
[1753060340960,5.17509321,3739.9,3739.8,0.001]
[1753060342671,2.47455241,3739.9,3739.8,0.001]
[1753060342875,5.14842069,3739.9,3739.8,0.001]
[1753060343860,2.04065241,3739.9,3739.8,0.001]
[1753060344046,2.47455241,3739.9,3739.8,0.001]
[1753060344860,0.956,3739.9,3739.8,0.001]
[1753060345356,1.3899,3739.9,3739.8,0.001]
[1753060346173,1.41657252,3739.9,3739.8,0.001]
[1753060346379,0.956,3739.9,3739.8,0.001]
[1753060346973,0.1336,3739.9,3739.8,0.001]
[1753060347177,0.1336,3739.9,3739.8,0.436]
[1753060347379,0.1336,3739.9,3739.8,3.10993978]
[1753060347594,0.002,3741.0,3740.2,2.67362732]
[1753060347892,0.002,3741.0,3740.5,2.67337493]
[1753060348074,0.1356,3741.0,3740.6,0.02673367]
[1753060348243,0.1356,3741.0,3740.7,2.67324545]
[1753060348445,0.002,3741.0,3740.8,0.02673224]
[1753060348754,0.002,3741.0,3740.9,0.4702]
[1753060349077,0.002,3741.0,3740.9,3.14335351]
[1753060349244,0.002,3741.0,3740.9,0.4702]
[1753060349576,0.002,3741.0,3740.9,6.74106388]
[1753060349784,0.002,3741.0,3740.9,7.52816388]
[1753060349940,0.002,3741.0,3740.9,11.68516388]
[1753060351981,0.002,3741.0,3740.9,7.52816388]
[1753060352285,0.002,3741.4,3741.3,3.45996771]
[1753060352481,0.002,3741.4,3741.3,7.13269315]
[1753060352662,0.002,3741.4,3741.3,7.23956448]
[1753060352855,0.002,3741.4,3741.3,7.70976448]
[1753060354165,0.022,3741.9,3741.8,2.67251055]
[1753060354366,0.022,3741.9,3741.8,6.96211055]
[1753060354692,0.022,3741.9,3741.8,8.39578157]
[1753060356092,0.022,3741.9,3741.8,9.18288157]
[1753060356296,0.022,3741.9,3741.8,2.35437102]
[1753060356452,0.022,3741.9,3741.8,7.7598]
[1753060356951,0.022,3741.9,3741.8,7.2896]
[1753060357774,0.022,3741.9,3741.8,7.7598]
[1753060357978,0.022,3741.9,3741.8,10.43231055]
[1753060358676,0.022,3741.9,3741.8,7.7598]
[1753060358880,0.022,3741.9,3741.8,9.07030836]
[1753060359057,0.022,3741.9,3741.8,10.43231055]
[1753060359257,0.022,3741.9,3741.8,8.36179994]
[1753060359460,0.022,3741.9,3741.8,15.18931049]
[1753060359857,0.022,3741.9,3741.8,10.56411049]
[1753060360164,0.022,3741.9,3741.8,16.51298648]
[1753060362292,0.022,3741.9,3741.8,17.28858648]
[1753060362489,0.022,3741.9,3741.8,14.61607593]
[1753060362697,0.022,3741.9,3741.8,17.28858648]
[1753060367387,0.022,3741.9,3741.8,13.13358648]
[1753060367589,0.022,3741.9,3741.8,17.28758648]
[1753060371925,0.022,3741.9,3741.8,7.89159994]
[1753060372122,0.022,3741.9,3741.8,12.04559994]
[1753060372286,0.022,3741.9,3741.8,14.71811049]
[1753060372624,0.022,3741.9,3741.8,15.18831049]
[1753060373120,0.022,3741.9,3741.8,12.51579994]
[1753060373623,0.022,3741.9,3741.8,7.89159994]
[1753060373920,0.022,3741.9,3741.8,8.91199994]
[1753060374220,0.4646,3741.9,3741.8,8.91199994]
[1753060374430,1.268,3741.9,3741.8,8.91199994]
[1753060375003,0.022,3741.9,3741.8,8.91199994]
[1753060376903,0.022,3741.9,3741.8,4.154]
[1753060377098,0.022,3741.9,3741.8,6.82651055]
[1753060377303,0.022,3741.9,3741.8,11.9689466]
[1753060378825,1e-08,3741.9,3741.8,12.5189466]
[1753060379122,1e-08,3741.9,3741.8,24.14543254]
[1753060379700,1e-08,3741.9,3741.8,17.27694654]
[1753060380120,1e-08,3741.9,3741.8,20.38937454]
[1753060380425,1e-08,3741.9,3741.8,9.65403599]
[1753060380633,1e-08,3741.9,3741.6,4.75799994]
[1753060381017,1e-08,3741.9,3741.4,0.001]
[1753060381018,0.4568,3741.8,3741.7,4.153]
[1753060382541,0.4568,3741.8,3741.4,0.001]
[1753060382739,0.02667253,3741.9,3741.5,4.153]
[1753060383036,0.4568,3741.8,3741.5,4.153]
[1753060383235,1e-08,3741.9,3741.5,4.153]
[1753060384038,0.4568,3741.8,3741.6,4.153]
[1753060384225,0.4568,3741.7,3741.4,0.001]
[1753060384842,0.4568,3741.6,3741.5,4.153]
[1753060385001,1e-08,3741.9,3741.5,4.153]
[1753060385347,0.45680001,3741.9,3741.4,0.001]
[1753060385560,0.4568,3741.8,3741.6,4.153]
[1753060385834,1e-08,3741.9,3741.6,4.153]
[1753060386225,1e-08,3741.9,3741.7,0.4707]
[1753060386397,1e-08,3741.9,3741.8,4.154]
[1753060387610,1e-08,3741.9,3741.4,0.001]
[1753060388014,1e-08,3741.9,3741.5,4.154]
[1753060389311,1e-08,3741.9,3741.6,0.49742653]
[1753060389846,1e-08,3741.9,3741.5,5.61526385]
[1753060390341,1e-08,3741.9,3741.7,0.1336]
[1753060390513,1.2681,3741.8,3741.5,0.1336]
[1753060390727,0.48347252,3741.7,3741.6,4.153]
[1753060390945,0.8113,3741.8,3741.6,4.153]
[1753060392424,0.13360001,3741.9,3741.6,4.153]
[1753060394053,1e-08,3741.9,3741.7,0.49742581]
[1753060394254,1e-08,3741.9,3741.7,0.63102581]
[1753060394551,1e-08,3741.9,3741.7,0.6043]
[1753060395444,1e-08,3741.9,3741.7,0.1336]
[1753060399441,1e-08,3741.9,3741.8,0.4707]
[1753060399770,1e-08,3741.9,3741.8,0.94910272]
[1753060400341,1e-08,3741.9,3741.7,0.1336]
[1753060401561,1e-08,3741.9,3741.8,2.67251055]
[1753060401766,1e-08,3741.9,3741.8,3.16993565]
[1753060401964,1e-08,3741.9,3741.8,0.4974251]
[1753060402280,1e-08,3741.9,3741.8,6.16993565]
[1753060402584,1e-08,3741.9,3741.8,5.08371291]
[1753060402882,1e-08,3741.9,3741.8,9.23671291]
[1753060403173,1e-08,3741.9,3741.8,11.90922346]
[1753060403673,1e-08,3741.9,3741.8,9.23671291]
[1753060404043,1e-08,3741.9,3741.8,4.152]
[1753060404665,0.45680001,3741.9,3741.8,4.152]
[1753060404871,1e-08,3741.9,3741.8,4.152]
[1753060405705,1e-08,3741.9,3741.6,0.001]
[1753060405839,1e-08,3741.9,3741.8,4.152]
[1753060406038,1e-08,3741.9,3741.8,4.5673]
[1753060406242,1e-08,3741.9,3741.8,5.038]
[1753060406702,1e-08,3741.9,3741.8,10.73723565]
[1753060406997,1e-08,3741.9,3741.8,16.26381049]
[1753060407949,0.002,3742.2,3742.1,2.6722963]
[1753060408176,0.002,3742.2,3742.1,15.05835313]
[1753060408486,0.002,3742.2,3742.1,15.61083017]
[1753060409853,0.002,3742.2,3742.1,18.61083017]
[1753060410194,1e-08,3742.2,3742.1,33.26560317]
[1753060410505,0.002,3743.4,3742.1,33.26560317]
[1753060410506,0.002,3743.4,3743.3,5.67143963]
[1753060410651,0.002,3743.4,3743.3,17.76589798]
[1753060410855,0.002,3743.4,3743.3,18.18478359]
[1753060411258,1e-08,3743.4,3743.3,23.69427868]
[1753060411606,1e-08,3743.4,3743.3,26.51123868]
[1753060412523,1e-08,3743.4,3743.3,23.69427868]
[1753060412827,1e-08,3743.4,3743.3,25.69497868]
[1753060413023,1e-08,3743.4,3743.3,23.69427868]
[1753060414229,1e-08,3743.4,3743.3,25.69492868]
[1753060414730,1e-08,3743.4,3743.3,23.69427868]
[1753060415242,1e-08,3743.4,3743.3,19.54327868]
[1753060415408,1e-08,3743.4,3743.3,23.14327868]
[1753060416828,1e-08,3743.4,3743.3,18.54767868]
[1753060417027,1e-08,3743.4,3743.3,23.14227868]
[1753060417240,1e-08,3743.4,3743.3,34.28868168]
[1753060417532,1e-08,3743.4,3743.3,30.78105468]
[1753060417728,1e-08,3743.4,3743.3,27.43664268]
[1753060418044,1e-08,3743.4,3743.3,26.97107868]
[1753060418620,1e-08,3743.4,3743.3,26.74480968]
[1753060419806,1e-08,3743.4,3743.3,32.22622768]
[1753060420227,0.02,3744.9,3743.6,4.05162555]
[1753060420414,0.02,3744.9,3743.6,23.37537166]
[1753060420632,0.02,3744.9,3743.6,19.16455941]
[1753060420850,0.02,3744.9,3743.6,41.90302641]
[1753060421341,0.02,3744.9,3743.6,21.46225941]
[1753060421740,0.02,3744.9,3743.6,25.76764341]
[1753060422053,0.02,3744.9,3743.6,25.89970496]
[1753060422839,0.02,3744.9,3743.8,4.02168285]
[1753060423043,0.02,3744.9,3744.8,6.47096957]
[1753060423255,0.02,3744.9,3744.8,10.61896957]
[1753060423442,0.02,3744.9,3744.8,10.75176957]
[1753060423760,0.02,3744.9,3744.8,11.19736957]
[1753060423946,0.02,3744.9,3744.8,12.58415193]
[1753060426167,0.02,3744.9,3744.8,7.2798]
[1753060427153,0.02,3744.9,3744.8,3.1328]
[1753060427354,0.4768,3744.9,3744.8,0.1328]
[1753060427554,0.4768,3744.9,3744.8,4.2798]
[1753060427728,0.4768,3744.9,3744.8,0.1328]
[1753060428051,1.2683,3744.9,3744.8,4.2798]
[1753060428219,0.02,3744.9,3744.8,7.2798]
[1753060428420,0.02,3744.9,3744.8,3.86078]
[1753060428628,0.02,3744.9,3744.8,8.00778]
[1753060428856,0.02,3744.9,3744.8,7.2798]
[1753060429153,0.4768,3744.9,3744.8,7.2798]
[1753060429341,0.4768,3744.9,3744.8,3.1328]
[1753060429654,0.4768,3744.9,3744.8,7.2798]
[1753060430553,0.4768,3744.9,3744.8,3.1328]
[1753060430851,1.2823,3744.9,3744.8,4.147]
[1753060431631,1.2823,3744.9,3744.3,3.0]
[1753060431632,0.8055,3744.8,3744.3,3.0]
[1753060431818,0.8055,3744.8,3744.4,4.147]
[1753060431819,0.52805319,3744.7,3744.4,4.147]
[1753060432019,0.4568,3744.6,3744.4,4.147]
[1753060432217,0.4568,3744.5,3744.4,4.147]
[1753060433455,1.2623,3744.5,3744.4,4.146]
[1753060433770,0.8055,3744.4,3744.0,0.1328]
[1753060433939,0.4568,3744.5,3744.1,4.146]
[1753060433940,0.1328,3744.2,3744.1,4.146]
[1753060434442,0.7666,3744.1,3743.4,0.1328]
[1753060434646,0.7666,3743.9,3743.4,0.1328]
[1753060434833,0.7666,3743.9,3743.5,4.146]
[1753060435036,0.4568,3743.8,3743.5,4.146]
[1753060435861,0.4568,3743.7,3743.5,4.146]
[1753060436454,0.4568,3743.6,3743.5,4.146]
[1753060436687,0.8011,3743.5,3742.6,11.16199993]
[1753060436833,0.8241,3743.3,3742.6,6.404]
[1753060437032,0.1328,3743.1,3742.7,4.146]
[1753060437267,1.2809,3743.0,3742.7,4.146]
[1753060437438,0.8241,3743.0,3742.7,4.146]
[1753060437631,0.4568,3742.9,3742.7,4.146]
[1753060437838,0.7809,3742.7,3742.1,0.021]
[1753060438055,0.9137,3742.7,3742.2,4.146]
[1753060438278,0.4322,3742.6,3742.2,4.146]
[1753060438457,0.9137,3742.7,3742.2,4.146]
[1753060438637,0.4322,3742.5,3742.2,4.146]
[1753060438837,0.4322,3742.5,3742.3,4.146]
[1753060439875,0.4322,3742.4,3742.3,4.146]
[1753060440234,0.4322,3742.4,3742.1,0.021]
[1753060440430,0.4322,3742.4,3742.2,4.147]
[1753060440655,0.9137,3742.7,3742.2,4.147]
[1753060440874,0.9137,3742.7,3742.2,5.14439849]
[1753060441055,6.04620298,3743.7,3742.6,2.67187325]
[1753060441056,0.7869,3743.1,3742.6,2.67187325]
[1753060441348,0.7869,3743.1,3742.6,0.1328]
[1753060441753,0.4322,3743.0,3742.7,4.147]
[1753060441949,0.7869,3743.1,3742.8,4.147]
[1753060443764,1.2191,3743.1,3742.8,4.147]
[1753060443970,0.4322,3743.0,3742.6,0.1328]
[1753060444171,0.4322,3743.0,3742.7,4.147]